[Event "Titled Tuesday Blitz August 15 Late 2023"]
[White "Yeritsyan, Hayk"]
[Black "Troff, Kayden"]
[WhiteFideId "13307320"]
[BlackFideId "2047896"]
[WhiteElo "2474"]
[BlackElo "2763"]
[Result "1/2-1/2"]
[Round "5"]
[TimeControl "180+1"]
[Date "2023.08.15"]
[WhiteClock "0:00:13"]
[BlackClock "0:00:05"]
[Board "68"]

1. d4 {[%clk 0:03:00]}  Nf6 {[%clk 0:02:57]} 2. Nf3 {[%clk 0:03:01]}  g6 {[%clk 0:02:57]} 3. Bf4 {[%clk 0:03:01]}  Bg7 {[%clk 0:02:56]} 4. h3 {[%clk 0:03:02]}  d6 {[%clk 0:02:52]} 5. e3 {[%clk 0:03:02]}  O-O {[%clk 0:02:48]} 6. c3 {[%clk 0:03:02]}  Nc6 {[%clk 0:02:44]} 7. Be2 {[%clk 0:03:02]}  Nd7 {[%clk 0:02:43]} 8. O-O {[%clk 0:03:02]}  e5 {[%clk 0:02:43]} 9. Bh2 {[%clk 0:03:02]}  b6 {[%clk 0:02:34]} 10. Nbd2 {[%clk 0:03:00]}  Bb7 {[%clk 0:02:33]} 11. Rc1 {[%clk 0:03:00]}  Qe7 {[%clk 0:02:31]} 12. b4 {[%clk 0:03:00]}  e4 {[%clk 0:02:27]} 13. Ne1 {[%clk 0:03:00]}  f5 {[%clk 0:02:26]} 14. a3 {[%clk 0:02:59]}  Kh8 {[%clk 0:02:21]} 15. c4 {[%clk 0:02:59]}  g5 {[%clk 0:02:18]} 16. Nc2 {[%clk 0:02:58]}  f4 {[%clk 0:02:12]} 17. Re1 {[%clk 0:02:55]}  fxe3 {[%clk 0:02:02]} 18. fxe3 {[%clk 0:02:54]}  Nf6 {[%clk 0:02:00]} 19. Rf1 {[%clk 0:02:52]}  Bc8 {[%clk 0:01:50]} 20. Nb3 {[%clk 0:02:44]}  a6 {[%clk 0:01:35]} 21. c5 {[%clk 0:02:41]}  Bd7 {[%clk 0:01:27]} 22. cxd6 {[%clk 0:02:38]}  cxd6 {[%clk 0:01:27]} 23. Qd2 {[%clk 0:02:21]}  Nd5 {[%clk 0:01:08]} 24. Rxf8+ {[%clk 0:02:12]}  Rxf8 {[%clk 0:01:08]} 25. Rf1 {[%clk 0:02:13]}  Rxf1+ {[%clk 0:01:05]} 26. Bxf1 {[%clk 0:02:13]}  b5 {[%clk 0:01:04]} 27. Nc1 {[%clk 0:02:06]}  g4 {[%clk 0:00:54]} 28. hxg4 {[%clk 0:02:02]}  Bxg4 {[%clk 0:00:55]} 29. Ne2 {[%clk 0:02:00]}  Bxe2 {[%clk 0:00:39]} 30. Qxe2 {[%clk 0:01:53]}  Qg5 {[%clk 0:00:22]} 31. Bxd6 {[%clk 0:01:40]}  Bh6 {[%clk 0:00:20]} 32. Kf2 {[%clk 0:00:54]}  Qf6+ {[%clk 0:00:20]} 33. Bf4 {[%clk 0:00:51]}  Bxf4 {[%clk 0:00:16]} 34. exf4 {[%clk 0:00:51]}  Qxf4+ {[%clk 0:00:17]} 35. Kg1 {[%clk 0:00:49]}  e3 {[%clk 0:00:17]} 36. Qf3 {[%clk 0:00:44]}  Qxf3 {[%clk 0:00:12]} 37. gxf3 {[%clk 0:00:45]}  Nce7 {[%clk 0:00:12]} 38. Bd3 {[%clk 0:00:41]}  Nf4 {[%clk 0:00:12]} 39. Be4 {[%clk 0:00:38]}  Ned5 {[%clk 0:00:09]} 40. Bxd5 {[%clk 0:00:37]}  Nxd5 {[%clk 0:00:10]} 41. Kf1 {[%clk 0:00:36]}  h5 {[%clk 0:00:11]} 42. Ke2 {[%clk 0:00:36]}  h4 {[%clk 0:00:11]} 43. Nxe3 {[%clk 0:00:35]}  Nf4+ {[%clk 0:00:07]} 44. Kf2 {[%clk 0:00:35]}  Kh7 {[%clk 0:00:07]} 45. Ng4 {[%clk 0:00:34]}  Kg6 {[%clk 0:00:07]} 46. Ke3 {[%clk 0:00:35]}  Kf5 {[%clk 0:00:07]} 47. Nh6+ {[%clk 0:00:30]}  Kg5 {[%clk 0:00:07]} 48. Ng4 {[%clk 0:00:30]}  Kf5 {[%clk 0:00:07]} 49. Nh6+ {[%clk 0:00:26]}  Kg5 {[%clk 0:00:07]} 50. Ng4 {[%clk 0:00:26]}  h3 {[%clk 0:00:07]} 51. Ke4 {[%clk 0:00:23]}  Nh5 {[%clk 0:00:07]} 52. Ke5 {[%clk 0:00:20]}  Kh4 {[%clk 0:00:05]} 53. d5 {[%clk 0:00:19]}  Kg3 {[%clk 0:00:04]} 54. d6 {[%clk 0:00:17]}  Kxf3 {[%clk 0:00:04]} 55. Nh2+ {[%clk 0:00:16]}  Kg2 {[%clk 0:00:04]} 56. d7 {[%clk 0:00:17]}  Kxh2 {[%clk 0:00:04]} 57. d8=Q {[%clk 0:00:17]}  Ng3 {[%clk 0:00:04]} 58. Qd2+ {[%clk 0:00:16]}  Kg1 {[%clk 0:00:05]} 59. Kf4 {[%clk 0:00:16]}  Nf1 {[%clk 0:00:03]} 60. Qd3 {[%clk 0:00:15]}  h2 {[%clk 0:00:03]} 61. Qd4+ {[%clk 0:00:15]}  Kg2 {[%clk 0:00:03]} 62. Qe4+ {[%clk 0:00:14]}  Kf2 {[%clk 0:00:03]} 63. Qf3+ {[%clk 0:00:14]}  Kg1 {[%clk 0:00:03]} 64. Qg4+ {[%clk 0:00:15]}  Kf2 {[%clk 0:00:03]} 65. Qh4+ {[%clk 0:00:15]}  Kg1 {[%clk 0:00:04]} 66. Qg4+ {[%clk 0:00:14]}  Kf2 {[%clk 0:00:04]} 67. Qf3+ {[%clk 0:00:14]}  Kg1 {[%clk 0:00:05]} 68. Qg4+ {[%clk 0:00:13]} 1/2-1/2


[Site "https://www.chess.com"]

[Event "Titled Tuesday Blitz August 15 Late 2023"]
[White "GaiozNigalidze"]
[Black "brm72"]
[WhiteElo "2718"]
[BlackElo "2465"]
[Result "1/2-1/2"]
[Round "5"]
[TimeControl "180+1"]
[Date "2023.08.15"]
[WhiteClock "0:00:18"]
[BlackClock "0:00:12"]
[Board "70"]

1. c4 {[%clk 0:03:00]}  c5 {[%clk 0:02:59]} 2. Nf3 {[%clk 0:03:00]}  Nc6 {[%clk 0:02:59]} 3. g3 {[%clk 0:03:01]}  g6 {[%clk 0:03:00]} 4. Bg2 {[%clk 0:03:02]}  Bg7 {[%clk 0:03:00]} 5. O-O {[%clk 0:03:02]}  e5 {[%clk 0:03:01]} 6. Nc3 {[%clk 0:03:03]}  d6 {[%clk 0:03:00]} 7. Ne1 {[%clk 0:03:03]}  Be6 {[%clk 0:02:55]} 8. d3 {[%clk 0:03:03]}  Nge7 {[%clk 0:02:54]} 9. Nc2 {[%clk 0:03:03]}  d5 {[%clk 0:02:53]} 10. cxd5 {[%clk 0:03:03]}  Nxd5 {[%clk 0:02:54]} 11. Nxd5 {[%clk 0:03:01]}  Bxd5 {[%clk 0:02:55]} 12. Bxd5 {[%clk 0:02:59]}  Qxd5 {[%clk 0:02:56]} 13. Ne3 {[%clk 0:02:59]}  Qe6 {[%clk 0:02:51]} 14. Qa4 {[%clk 0:02:46]}  O-O {[%clk 0:02:45]} 15. Bd2 {[%clk 0:02:42]}  Nd4 {[%clk 0:02:38]} 16. Rfe1 {[%clk 0:02:40]}  h6 {[%clk 0:02:24]} 17. Bc3 {[%clk 0:02:36]}  b6 {[%clk 0:02:19]} 18. Qc4 {[%clk 0:02:30]}  Qd7 {[%clk 0:02:07]} 19. a4 {[%clk 0:02:24]}  Kh7 {[%clk 0:02:02]} 20. b4 {[%clk 0:01:51]}  cxb4 {[%clk 0:01:51]} 21. Qxb4 {[%clk 0:01:52]}  f5 {[%clk 0:01:40]} 22. Bxd4 {[%clk 0:01:35]}  exd4 {[%clk 0:01:40]} 23. Ng2 {[%clk 0:01:22]}  g5 {[%clk 0:01:39]} 24. Qb5 {[%clk 0:01:17]}  Rfd8 {[%clk 0:01:14]} 25. Rec1 {[%clk 0:01:04]}  Qxb5 {[%clk 0:01:12]} 26. axb5 {[%clk 0:01:04]}  Rd5 {[%clk 0:01:13]} 27. Rab1 {[%clk 0:00:57]}  Re8 {[%clk 0:01:12]} 28. Rc2 {[%clk 0:00:46]}  Ree5 {[%clk 0:01:11]} 29. Rcb2 {[%clk 0:00:46]}  Bf8 {[%clk 0:01:06]} 30. f4 {[%clk 0:00:47]}  Re6 {[%clk 0:01:04]} 31. fxg5 {[%clk 0:00:45]}  hxg5 {[%clk 0:01:04]} 32. h4 {[%clk 0:00:45]}  Bd6 {[%clk 0:01:00]} 33. Kf2 {[%clk 0:00:42]}  gxh4 {[%clk 0:00:48]} 34. Nxh4 {[%clk 0:00:38]}  f4 {[%clk 0:00:43]} 35. gxf4 {[%clk 0:00:31]}  Bxf4 {[%clk 0:00:41]} 36. Ng2 {[%clk 0:00:30]}  Bg5 {[%clk 0:00:38]} 37. Rh1+ {[%clk 0:00:30]}  Kg6 {[%clk 0:00:37]} 38. Ne1 {[%clk 0:00:24]}  Ree5 {[%clk 0:00:34]} 39. Nf3 {[%clk 0:00:24]}  Rf5 {[%clk 0:00:28]} 40. Rc2 {[%clk 0:00:19]}  Be3+ {[%clk 0:00:27]} 41. Kg2 {[%clk 0:00:19]}  Rf6 {[%clk 0:00:18]} 42. Nh4+ {[%clk 0:00:18]}  Kf7 {[%clk 0:00:17]} 43. Rc7+ {[%clk 0:00:19]}  Ke6 {[%clk 0:00:17]} 44. Nf3 {[%clk 0:00:18]}  Rxb5 {[%clk 0:00:16]} 45. Rc6+ {[%clk 0:00:17]}  Kf7 {[%clk 0:00:12]} 46. Rh7+ {[%clk 0:00:16]}  Kg8 {[%clk 0:00:12]} 47. Rxf6 {[%clk 0:00:15]}  Kxh7 {[%clk 0:00:12]} 48. Rf7+ {[%clk 0:00:16]}  Kg6 {[%clk 0:00:12]} 49. Rxa7 {[%clk 0:00:17]}  Rb2 {[%clk 0:00:11]} 50. Kf1 {[%clk 0:00:17]}  Rb1+ {[%clk 0:00:11]} 51. Kg2 {[%clk 0:00:17]}  Rb2 {[%clk 0:00:11]} 52. Kf1 {[%clk 0:00:18]}  Rb1+ {[%clk 0:00:12]} 53. Kg2 {[%clk 0:00:18]}  Rb2 {[%clk 0:00:12]} 1/2-1/2


[Site "https://www.chess.com"]

[Event "Titled Tuesday Blitz August 15 Late 2023"]
[White "Farmani Anosheh, Armin"]
[Black "Dourerassou, Jonathan"]
[WhiteFideId "24613240"]
[BlackFideId "628050"]
[WhiteElo "2455"]
[BlackElo "2667"]
[Result "0-1"]
[Round "5"]
[TimeControl "180+1"]
[Date "2023.08.15"]
[WhiteClock "0:00:00"]
[BlackClock "0:00:32"]
[Board "72"]

1. e4 {[%clk 0:03:00]}  e6 {[%clk 0:02:59]} 2. d4 {[%clk 0:03:00]}  b6 {[%clk 0:03:00]} 3. Nf3 {[%clk 0:03:00]}  Bb7 {[%clk 0:03:00]} 4. Bd3 {[%clk 0:03:00]}  d5 {[%clk 0:03:00]} 5. e5 {[%clk 0:03:00]}  c5 {[%clk 0:03:00]} 6. c3 {[%clk 0:03:01]}  Nc6 {[%clk 0:03:00]} 7. O-O {[%clk 0:03:01]}  Nge7 {[%clk 0:02:59]} 8. Re1 {[%clk 0:02:59]}  Qd7 {[%clk 0:02:59]} 9. a3 {[%clk 0:02:50]}  c4 {[%clk 0:02:58]} 10. Bc2 {[%clk 0:02:48]}  O-O-O {[%clk 0:02:57]} 11. Nbd2 {[%clk 0:02:46]}  Nf5 {[%clk 0:02:56]} 12. b3 {[%clk 0:02:33]}  Na5 {[%clk 0:02:50]} 13. bxc4 {[%clk 0:02:29]}  Nxc4 {[%clk 0:02:51]} 14. Nxc4 {[%clk 0:02:29]}  dxc4 {[%clk 0:02:52]} 15. a4 {[%clk 0:02:27]}  Be7 {[%clk 0:02:49]} 16. a5 {[%clk 0:02:26]}  b5 {[%clk 0:02:48]} 17. a6 {[%clk 0:02:26]}  Bd5 {[%clk 0:02:48]} 18. Ba3 {[%clk 0:02:20]}  Bxa3 {[%clk 0:02:46]} 19. Rxa3 {[%clk 0:02:21]}  Qc6 {[%clk 0:02:45]} 20. Ra5 {[%clk 0:02:08]}  Kc7 {[%clk 0:02:41]} 21. Qb1 {[%clk 0:02:05]}  Bxf3 {[%clk 0:02:26]} 22. gxf3 {[%clk 0:02:01]}  Nh4 {[%clk 0:02:25]} 23. Be4 {[%clk 0:01:56]}  Nxf3+ {[%clk 0:02:24]} 24. Kh1 {[%clk 0:01:49]}  Nd2 {[%clk 0:02:23]} 25. Bxc6 {[%clk 0:01:23]}  Nxb1 {[%clk 0:02:22]} 26. Rxb1 {[%clk 0:01:15]}  Kxc6 {[%clk 0:02:21]} 27. Raxb5 {[%clk 0:01:15]}  Rd5 {[%clk 0:02:06]} 28. Rb7 {[%clk 0:01:14]}  f6 {[%clk 0:01:48]} 29. exf6 {[%clk 0:01:00]}  gxf6 {[%clk 0:01:49]} 30. Rxa7 {[%clk 0:00:44]}  Ra5 {[%clk 0:01:48]} 31. Re7 {[%clk 0:00:39]}  Kd6 {[%clk 0:01:42]} 32. Ra7 {[%clk 0:00:36]}  Ra3 {[%clk 0:01:30]} 33. f3 {[%clk 0:00:30]}  Kc6 {[%clk 0:01:25]} 34. Re7 {[%clk 0:00:29]}  Kd6 {[%clk 0:01:25]} 35. Rf7 {[%clk 0:00:15]}  Rxa6 {[%clk 0:01:20]} 36. Rxf6 {[%clk 0:00:15]}  Ke7 {[%clk 0:01:17]} 37. Rh6 {[%clk 0:00:14]}  Ra3 {[%clk 0:01:13]} 38. Re1 {[%clk 0:00:14]}  Rxc3 {[%clk 0:01:11]} 39. Rexe6+ {[%clk 0:00:11]}  Kf7 {[%clk 0:01:10]} 40. Ra6 {[%clk 0:00:10]}  Rc1+ {[%clk 0:01:02]} 41. Kg2 {[%clk 0:00:10]}  Rg8+ {[%clk 0:01:02]} 42. Kf2 {[%clk 0:00:10]}  Rc2+ {[%clk 0:01:00]} 43. Ke3 {[%clk 0:00:10]}  Re8+ {[%clk 0:00:59]} 44. Kf4 {[%clk 0:00:11]}  Kg7 {[%clk 0:00:59]} 45. Rhc6 {[%clk 0:00:10]}  Rf8+ {[%clk 0:00:59]} 46. Kg4 {[%clk 0:00:10]}  Rg2+ {[%clk 0:00:56]} 47. Kh3 {[%clk 0:00:10]}  Rg6 {[%clk 0:00:53]} 48. Rxg6+ {[%clk 0:00:10]}  hxg6 {[%clk 0:00:54]} 49. Kg4 {[%clk 0:00:08]}  Rd8 {[%clk 0:00:53]} 50. Ra7+ {[%clk 0:00:06]}  Kh6 {[%clk 0:00:52]} 51. f4 {[%clk 0:00:05]}  Rxd4 {[%clk 0:00:53]} 52. Rc7 {[%clk 0:00:06]}  Re4 {[%clk 0:00:51]} 53. h4 {[%clk 0:00:05]}  Rd4 {[%clk 0:00:50]} 54. Kf3 {[%clk 0:00:04]}  Rd3+ {[%clk 0:00:48]} 55. Ke4 {[%clk 0:00:04]}  Rc3 {[%clk 0:00:47]} 56. Kd4 {[%clk 0:00:03]}  Rf3 {[%clk 0:00:46]} 57. Ke4 {[%clk 0:00:03]}  Rc3 {[%clk 0:00:46]} 58. Rc8 {[%clk 0:00:04]}  Kg7 {[%clk 0:00:44]} 59. Kd4 {[%clk 0:00:03]}  Rf3 {[%clk 0:00:42]} 60. Ke5 {[%clk 0:00:02]}  c3 {[%clk 0:00:40]} 61. Ke4 {[%clk 0:00:03]}  Rh3 {[%clk 0:00:40]} 62. Rc6 {[%clk 0:00:02]}  Kf7 {[%clk 0:00:36]} 63. Rc5 {[%clk 0:00:01]}  Kf6 {[%clk 0:00:33]} 64. Rc6+ {[%clk 0:00:00]}  Kf7 {[%clk 0:00:32]} 0-1


[Site "https://www.chess.com"]

[Event "Titled Tuesday Blitz August 15 Late 2023"]
[White "Papayan, Oleg"]
[Black "dr_tatiana"]
[WhiteFideId "4193911"]
[WhiteElo "2623"]
[BlackElo "2454"]
[Result "1-0"]
[Round "5"]
[TimeControl "180+1"]
[Date "2023.08.15"]
[WhiteClock "0:00:04"]
[BlackClock "0:00:00"]
[Board "73"]

1. e4 {[%clk 0:02:58]}  e5 {[%clk 0:02:56]} 2. Nf3 {[%clk 0:02:58]}  Nc6 {[%clk 0:02:56]} 3. Bb5 {[%clk 0:02:58]}  a6 {[%clk 0:02:52]} 4. Bxc6 {[%clk 0:02:58]}  dxc6 {[%clk 0:02:53]} 5. O-O {[%clk 0:02:59]}  Bd6 {[%clk 0:02:35]} 6. d4 {[%clk 0:02:56]}  Qe7 {[%clk 0:02:25]} 7. dxe5 {[%clk 0:02:38]}  Bxe5 {[%clk 0:02:26]} 8. Nxe5 {[%clk 0:02:39]}  Qxe5 {[%clk 0:02:26]} 9. Nc3 {[%clk 0:02:39]}  Ne7 {[%clk 0:02:03]} 10. f4 {[%clk 0:02:24]}  Qc5+ {[%clk 0:02:00]} 11. Kh1 {[%clk 0:02:25]}  Bd7 {[%clk 0:01:55]} 12. Qf3 {[%clk 0:02:21]}  O-O-O {[%clk 0:01:53]} 13. Be3 {[%clk 0:02:18]}  Qa5 {[%clk 0:01:52]} 14. a3 {[%clk 0:02:14]}  c5 {[%clk 0:01:47]} 15. Qf2 {[%clk 0:02:01]}  c4 {[%clk 0:01:45]} 16. Rfc1 {[%clk 0:01:41]}  Bc6 {[%clk 0:01:36]} 17. b4 {[%clk 0:01:31]}  cxb3 {[%clk 0:01:28]} 18. cxb3 {[%clk 0:01:32]}  Qh5 {[%clk 0:01:27]} 19. b4 {[%clk 0:01:27]}  f5 {[%clk 0:01:27]} 20. a4 {[%clk 0:01:16]}  Bxe4 {[%clk 0:01:16]} 21. b5 {[%clk 0:01:13]}  a5 {[%clk 0:01:14]} 22. Nxe4 {[%clk 0:01:07]}  fxe4 {[%clk 0:01:15]} 23. Bb6 {[%clk 0:00:57]}  Nd5 {[%clk 0:01:15]} 24. Bxc7 {[%clk 0:00:50]}  Nxc7 {[%clk 0:01:08]} 25. b6 {[%clk 0:00:50]}  Rd7 {[%clk 0:01:09]} 26. bxc7 {[%clk 0:00:48]}  e3 {[%clk 0:00:18]} 27. Qxe3 {[%clk 0:00:46]}  Re8 {[%clk 0:00:19]} 28. Qa7 {[%clk 0:00:43]}  Rxc7 {[%clk 0:00:19]} 29. Rxc7+ {[%clk 0:00:19]}  Kxc7 {[%clk 0:00:20]} 30. Rc1+ {[%clk 0:00:19]}  Kd6 {[%clk 0:00:16]} 31. Qb6+ {[%clk 0:00:14]}  Ke7 {[%clk 0:00:16]} 32. Qxb7+ {[%clk 0:00:13]}  Kf8 {[%clk 0:00:16]} 33. Qb5 {[%clk 0:00:06]}  Qf7 {[%clk 0:00:09]} 34. Qc5+ {[%clk 0:00:03]}  Kg8 {[%clk 0:00:09]} 35. Qxa5 {[%clk 0:00:03]}  Qxf4 {[%clk 0:00:09]} 36. Rd1 {[%clk 0:00:03]}  Qg4 {[%clk 0:00:06]} 37. Qd5+ {[%clk 0:00:03]}  Kh8 {[%clk 0:00:07]} 38. a5 {[%clk 0:00:04]}  h6 {[%clk 0:00:05]} 39. h3 {[%clk 0:00:04]}  Qa4 {[%clk 0:00:05]} 40. Rd2 {[%clk 0:00:02]}  Rb8 {[%clk 0:00:04]} 41. Kh2 {[%clk 0:00:02]}  Rb5 {[%clk 0:00:03]} 42. Qd8+ {[%clk 0:00:03]}  Kh7 {[%clk 0:00:03]} 43. Qd3+ {[%clk 0:00:03]}  Kh8 {[%clk 0:00:00]} 44. Qg6 {[%clk 0:00:04]} 1-0


[Site "https://www.chess.com"]

[Event "Titled Tuesday Blitz August 15 Late 2023"]
[White "Jakic, Ivan"]
[Black "Nasir, Zehn"]
[WhiteFideId "14504901"]
[BlackFideId "2613239"]
[WhiteElo "2453"]
[BlackElo "2613"]
[Result "1/2-1/2"]
[Round "5"]
[TimeControl "180+1"]
[Date "2023.08.15"]
[WhiteClock "0:00:47"]
[BlackClock "0:00:09"]
[Board "74"]

1. e4 {[%clk 0:03:00]}  c6 {[%clk 0:03:00]} 2. d4 {[%clk 0:02:59]}  d5 {[%clk 0:03:01]} 3. f3 {[%clk 0:03:00]}  Qa5+ {[%clk 0:03:01]} 4. Nc3 {[%clk 0:02:59]}  Nf6 {[%clk 0:02:53]} 5. e5 {[%clk 0:02:59]}  Ng8 {[%clk 0:02:52]} 6. f4 {[%clk 0:02:56]}  Bf5 {[%clk 0:02:49]} 7. Nf3 {[%clk 0:02:56]}  e6 {[%clk 0:02:48]} 8. Bd3 {[%clk 0:02:56]}  Nh6 {[%clk 0:02:46]} 9. O-O {[%clk 0:02:55]}  c5 {[%clk 0:02:38]} 10. dxc5 {[%clk 0:02:47]}  Bxc5+ {[%clk 0:02:38]} 11. Kh1 {[%clk 0:02:46]}  Nc6 {[%clk 0:02:32]} 12. a3 {[%clk 0:02:42]}  Qd8 {[%clk 0:02:27]} 13. h3 {[%clk 0:02:37]}  Bxd3 {[%clk 0:02:14]} 14. cxd3 {[%clk 0:02:35]}  Nf5 {[%clk 0:02:15]} 15. Kh2 {[%clk 0:02:33]}  Ne3 {[%clk 0:02:05]} 16. Bxe3 {[%clk 0:02:21]}  Bxe3 {[%clk 0:02:06]} 17. g3 {[%clk 0:02:17]}  h5 {[%clk 0:02:00]} 18. h4 {[%clk 0:02:17]}  Qb6 {[%clk 0:01:21]} 19. Na4 {[%clk 0:02:14]}  Qb5 {[%clk 0:01:16]} 20. d4 {[%clk 0:01:50]}  Rc8 {[%clk 0:00:42]} 21. Re1 {[%clk 0:01:49]}  Bf2 {[%clk 0:00:42]} 22. Re2 {[%clk 0:01:45]}  Bxd4 {[%clk 0:00:40]} 23. Rc1 {[%clk 0:01:31]}  Bb6 {[%clk 0:00:36]} 24. Nxb6 {[%clk 0:01:30]}  Qxb6 {[%clk 0:00:36]} 25. Rec2 {[%clk 0:01:30]}  g6 {[%clk 0:00:33]} 26. Ng5 {[%clk 0:01:30]}  O-O {[%clk 0:00:25]} 27. g4 {[%clk 0:01:28]}  Qe3 {[%clk 0:00:25]} 28. Nh3 {[%clk 0:01:11]}  hxg4 {[%clk 0:00:19]} 29. Qxg4 {[%clk 0:01:10]}  Ne7 {[%clk 0:00:19]} 30. Rxc8 {[%clk 0:01:08]}  Rxc8 {[%clk 0:00:20]} 31. Rxc8+ {[%clk 0:01:09]}  Nxc8 {[%clk 0:00:20]} 32. h5 {[%clk 0:01:09]}  Ne7 {[%clk 0:00:19]} 33. hxg6 {[%clk 0:01:09]}  Nxg6 {[%clk 0:00:20]} 34. Qg5 {[%clk 0:01:07]}  Qd2+ {[%clk 0:00:19]} 35. Kg3 {[%clk 0:01:07]}  Qxb2 {[%clk 0:00:19]} 36. Qd8+ {[%clk 0:01:07]}  Kg7 {[%clk 0:00:19]} 37. Qf6+ {[%clk 0:01:07]}  Kg8 {[%clk 0:00:19]} 38. Ng5 {[%clk 0:01:06]}  Qc3+ {[%clk 0:00:17]} 39. Kg4 {[%clk 0:01:05]}  Qc7 {[%clk 0:00:12]} 40. Kh5 {[%clk 0:00:54]}  Qe7 {[%clk 0:00:11]} 41. Nf3 {[%clk 0:00:49]}  Qxf6 {[%clk 0:00:10]} 42. exf6 {[%clk 0:00:50]}  Nxf4+ {[%clk 0:00:11]} 43. Kg4 {[%clk 0:00:50]}  Nd3 {[%clk 0:00:11]} 44. Kg5 {[%clk 0:00:49]}  Kf8 {[%clk 0:00:10]} 45. Nd2 {[%clk 0:00:49]}  e5 {[%clk 0:00:10]} 46. Kf5 {[%clk 0:00:49]}  e4 {[%clk 0:00:10]} 47. Nf1 {[%clk 0:00:49]}  Ke8 {[%clk 0:00:09]} 48. Ne3 {[%clk 0:00:48]}  d4 {[%clk 0:00:05]} 49. Nc4 {[%clk 0:00:48]}  e3 {[%clk 0:00:05]} 50. Ke4 {[%clk 0:00:47]}  e2 {[%clk 0:00:05]} 51. Kxd3 {[%clk 0:00:48]}  e1=Q {[%clk 0:00:06]} 52. Kxd4 {[%clk 0:00:48]}  Qf2+ {[%clk 0:00:05]} 53. Ke5 {[%clk 0:00:48]}  Qxf6+ {[%clk 0:00:06]} 54. Kxf6 {[%clk 0:00:48]}  Kd7 {[%clk 0:00:06]} 55. Ne5+ {[%clk 0:00:47]}  Kd6 {[%clk 0:00:06]} 56. Nxf7+ {[%clk 0:00:48]}  Kc5 {[%clk 0:00:07]} 57. Ke5 {[%clk 0:00:48]}  Kc4 {[%clk 0:00:07]} 58. Nd6+ {[%clk 0:00:48]}  Kb3 {[%clk 0:00:07]} 59. Nxb7 {[%clk 0:00:49]}  Kxa3 {[%clk 0:00:08]} 60. Kd5 {[%clk 0:00:49]}  Kb4 {[%clk 0:00:08]} 61. Kc6 {[%clk 0:00:47]}  a6 {[%clk 0:00:08]} 62. Kb6 {[%clk 0:00:47]}  a5 {[%clk 0:00:09]} 63. Nxa5 {[%clk 0:00:47]} 1/2-1/2


[Site "https://www.chess.com"]